Cogmind - Beta 17 @@@ ROGUE MODE // 2026.07.21 @ 00:14:44 Player: Xintrosi Result: Destroyed by S-10 Pest with Light Assault Rifle Performance ------------- Evolutions (1) 500 Regions Visited (2) 400 Robots Destroyed (0) 0 Value Destroyed (0) 0 Prototype IDs (0) 0 Alien Tech Used (0) 0 Bonus (200) 200 TOTAL SCORE: 1100 Bonus ------- Pacifist 200 Cogmind --------- Core Integrity 0/400 Matter 172/300 Energy 98/100 System Corruption 0% Temperature Cool (0) Movement Core (50) Location -9/Materials Parts ------- > --- POWER (1) -------- (None) > --- PROPULSION (3) --- (None) > --- UTILITY (3) ------ Signal Interpreter > --- WEAPON (2) ------- (None) > --- INVENTORY (5) ---- Ion Engine Light Ion Engine Small Storage Unit Peak State ------------ > --- POWER ------------ Light Ion Engine > --- PROPULSION ------- Aluminum Leg Aluminum Leg > --- UTILITY ---------- Small Storage Unit Signal Interpreter Medium Armor Plating > --- WEAPON ----------- (None) > --- INVENTORY -------- Ion Engine Light Ion Engine [Rating: 7] Favorites ----------- Power Light Ion Engine Engine Light Ion Engine Propulsion Aluminum Leg Leg Aluminum Leg Utility Small Storage Unit Storage Small Storage Unit Processor Signal Interpreter Protection Medium Armor Plating Weapon None Build | -11 -10 -9 ------- Run | Yrd Mat Mat Slots Evolved 2 | . . 2 Power . | . . . Propulsion 1 | . . 1 Utility 1 | . . 1 Weapon . | . . . Parts Attached 8 | 4 . 4 Power 1 | 1 . . Engine 1 | 1 . . Core . | . . . Reactor . | . . . Propulsion 2 | 2 . . Treads . | . . . Leg 2 | 2 . . Wheel . | . . . Hover . | . . . Flight . | . . . Utility 5 | 1 . 4 Device . | . . . Storage 1 | 1 . . Processor 2 | . . 2 Hackware . | . . . Protection 2 | . . 2 Artifact . | . . . Weapon . | . . . Energy Gun . | . . . Energy Cannon . | . . . Ballistic Gun . | . . . Ballistic Cannon . | . . . Launcher . | . . . Special Weapon . | . . . Impact Weapon . | . . . Slashing Weapon . | . . . Piercing Weapon . | . . . Special Melee Weapon . | . . . Unidentified Prototypes . | . . . Parts Lost 5 | . . 5 Power 1 | . . 1 Propulsion 2 | . . 2 Utility 2 | . . 2 Weapon . | . . . Highest Loss Streak 4 | . . 4 To Critical Strikes . | . . . Average Backups 1 | . 1 2 Power 1 | . 1 2 Propulsion . | . . . Utility . | . . . Weapon . | . . . Tool/Special . | . . . Unused Backups 2 | . . 2 Power 2 | . . 2 Propulsion . | . . . Utility . | . . . Weapon . | . . . Tool/Special . | . . . Average Slot Usage (%) 53 | . 57 50 Engine 10 | . 14 7 Leg 22 | . 28 17 Storage 11 | . 14 8 Processor 5 | . . 11 Protection 2 | . . 5 Peak Build Rating 7 | 4 4 7 Average Rating 4 | 3 4 5 On Entrance 2 | . 4 4 Avg Prop Armor Cover (%) . | . . . Naked Turns . | . . . Heaviest Build 15 | 8 8 15 Greatest Support 20 | 20 20 20 Greatest Overweight (x) 2 | . . 2 Average Overweight (x) . | . . . Largest Inventory Capacity 8 | 8 8 8 Average Capacity 7 | 6 8 7 Most Carried 3 | 1 2 3 Average Carried 1 | . 1 2 Final Capacity 8 | 8 8 5 Final Carried 3 | 1 2 3 Class Distribution -------------------- 100% | Mutant Dominant Class ---------------- Mutant | -10/Materials Mutant | -9/Materials Resources | -11 -10 -9 ----------- Run | Yrd Mat Mat Matter Collected 110 | 110 . . Remotely . | . . . Salvage Created . | . . . Parts . | . . . Haulers Intercepted . | . . . Recyclers Shooed . | . . . Parts Field Recycled . | . . . Retrieved Matter . | . . . Parts Self-Destructed . | . . . Prevented . | . . . Parts Restored . | . . . Kills | -11 -10 -9 ------- Run | Yrd Mat Mat Combat Hostiles Destroyed . | . . . Classes Destroyed . | . . . Best Kill Streak . | . . . Combat Bots Only . | . . . Max Kills in Single Turn . | . . . Gunslinging . | . . . Exploded . | . . . Melee . | . . . Uniques/NPCs Destroyed . | . . . Combat | -11 -10 -9 -------- Run | Yrd Mat Mat Hostile Shots Fired 204 | . . 204 Missed 97 | . . 97 Hits 107 | . . 107 Projectile 107 | . . 107 Critical Strikes 1 | . . 1 Damage Taken 918 | . . 918 Core 402 | . . 402 Absorbed by Shields . | . . . Core Remaining (%) 100 | 100 100 . Volleys Fired . | . . . Largest . | . . . Hottest . | . . . Shots Fired . | . . . Gun . | . . . Cannon . | . . . Launcher . | . . . Special . | . . . Kinetic . | . . . Thermal . | . . . Explosive . | . . . Electromagnetic . | . . . Robot Hit Streak . | . . . Robot Miss Streak . | . . . Penetration Max . | . . . Secondary Targets . | . . . Shots Hit Robots . | . . . Core Hits 2 | . . 2 Critical Kills . | . . . Critical Parts Destroyed . | . . . Critical Strikes . | . . . Melee Attacks . | . . . Impact . | . . . Slashing . | . . . Piercing . | . . . Sneak Attacks . | . . . Combat Hostiles . | . . . Follow-up Attacks . | . . . Damage Inflicted 12 | . . 12 Guns . | . . . Cannons . | . . . Explosions . | . . . Melee . | . . . Ramming 12 | . . 12 Kinetic . | . . . Thermal . | . . . Explosive . | . . . Electromagnetic . | . . . Impact . | . . . Slashing . | . . . Piercing . | . . . Highest Corruption . | . . . Average Corruption . | . . . Corruption Purged . | . . . Corruption Blocked . | . . . Overload Shots . | . . . Overflow Damage . | . . . Projectiles . | . . . Explosions . | . . . Melee . | . . . Knockbacks . | . . . Impact . | . . . Kinetic . | . . . Secondary . | . . . Self-Inflicted Damage . | . . . Shots . | . . . Rammed . | . . . Targets Rammed 7 | . . 7 Kicked 7 | . . 7 Crushed . | . . . Highest Temperature . | . . . Average Temperature . | . . . Received Heat Transfer 30 | . . 30 Siege Activations . | . . . Martial Activations . | . . . Shielding Activations . | . . . Robots Disrupted . | . . . Combat Hostiles . | . . . Robots Corrupted . | . . . Combat Hostiles . | . . . Parts Fried . | . . . Impact Corruptions . | . . . Robots Melted . | . . . Combat Hostiles . | . . . Parts Melted . | . . . Heat Transferred . | . . . Parts Sabotaged . | . . . Parts Stolen . | . . . Parts Stripped . | . . . Power Chain Reactions . | . . . Alert | -11 -10 -9 ------- Run | Yrd Mat Mat Maximum Alert Level . | . . . Low Security (%) 100 | 100 100 100 Level 1 . | . . . Level 2 . | . . . Level 3 . | . . . Level 4 . | . . . Level 5 . | . . . High Security . | . . . Max Security . | . . . Peak Influence 30 | . 14 30 Initial 1 | . . 1 Average 1 | . 1 2 Influence Increases 50 | . 20 30 Successful Hack 20 | . 20 . Lose Combat Pursuer 30 | . . 30 Influence Decreases 50 | . 16 34 Entered New Map 3 | . . 3 Time Decay 37 | . 16 21 Lost Part 10 | . . 10 Squads Dispatched 1 | . . 1 Investigation . | . . . Extermination . | . . . Reinforcement 1 | . . 1 Assault . | . . . Garrison . | . . . Intercept . | . . . Searches Triggered . | . . . Construction Impeded . | . . . Haulers Reinforced . | . . . Active Scanning Responses . | . . . Cargo Convoy Interrupts . | . . . Stealth | -11 -10 -9 --------- Run | Yrd Mat Mat Distress Signals 1 | . . 1 Communications Jammed . | . . . Distress Signals . | . . . Times Spotted 23 | . 2 21 Peak Tracking Total 16 | . 2 16 Tactical Retreats 1 | . . 1 Traps | -11 -10 -9 ------- Run | Yrd Mat Mat Traps Triggered . | . . . Indirectly . | . . . Trap Hack Attempts . | . . . Triggered . | . . . Disarmed . | . . . Reprogrammed . | . . . Reused . | . . . Traps Extracted . | . . . Installed . | . . . Triggered . | . . . Machines | -11 -10 -9 ---------- Run | Yrd Mat Mat Machines Disabled . | . . . Max in Single Turn . | . . . Machines Repaired . | . . . Machines Dismantled . | . . . Machines Sabotaged . | . . . Overloaded Fab Kills . | . . . Hacking | -11 -10 -9 --------- Run | Yrd Mat Mat Machines Accessed 4 | . 4 . Terminals 3 | . 3 . Fabricators . | . . . Repair Stations . | . . . Recycling Units 1 | . 1 . Scanalyzers . | . . . Garrison Access . | . . . Total Hacks 10 | . 10 . Successful 4 | . 4 . Failed 6 | . 6 . Catastrophic 2 | . 2 . Database Lockouts . | . . . Manual 7 | . 7 . Terminals 8 | . 8 . Fabricators . | . . . Repair Stations . | . . . Recycling Units 2 | . 2 . Scanalyzers . | . . . Garrison Access . | . . . Terminal Hacks 3 | . 3 . Registered Components 1 | . 1 . Zone Layout 2 | . 2 . Fabricator Hacks . | . . . Repair Station Hacks . | . . . Recycling Unit Hacks 1 | . 1 . Report Inventory 1 | . 1 . Scanalyzer . | . . . Garrison Access Hacks . | . . . Unauthorized Hacks . | . . . Terminals . | . . . Fabricators . | . . . Repair Stations . | . . . Recycling Units . | . . . Scanalyzers . | . . . Garrison Access . | . . . Data Cores Recovered . | . . . Used . | . . . Hacking Detections 4 | . 4 . Full Trace Events . | . . . Feedback Events . | . . . Feedback Blocked . | . . . Robot Schematics Acquired . | . . . Robots Built . | . . . Authchips . | . . . Time . | . . . Total Robot Build Rating . | . . . Part Schematics Acquired . | . . . Parts Built . | . . . Authchips . | . . . Time . | . . . Total Part Build Rating . | . . . Part Studies Acquired . | . . . Parts Repaired . | . . . Time . | . . . Parts Recycled . | . . . Recycled Matter . | . . . Retrieved Matter . | . . . Retrieved Components . | . . . Parts Scanalyzed . | . . . Part Schematics Acquired . | . . . Parts Damaged . | . . . Bothacking | -11 -10 -9 ------------ Run | Yrd Mat Mat Used RIF Installer . | . . . Robots Hacked . | . . . Non-combat . | . . . Combat . | . . . Robot Hacks Applied . | . . . Relay Couplers Released . | . . . Fabnet Peak Effective % . | . . . Robots Rewired . | . . . Allies Hacked . | . . . Hacks Repelled . | . . . Allies | -11 -10 -9 -------- Run | Yrd Mat Mat Total Allies . | . . . Largest Group . | . . . Highest-Rated Group . | . . . Highest-Rated Ally . | . . . Total Orders . | . . . Ally Attacks . | . . . Total Damage . | . . . Kills . | . . . Allies Corrupted . | . . . Allies Melted . | . . . Intel | -11 -10 -9 ------- Run | Yrd Mat Mat Active Infowar (turns) . | . . . Robot Analysis Total . | . . . Derelict Logs Recovered . | . . . Drone Launches . | . . . Drone Recoveries . | . . . Exploration | -11 -10 -9 ------------- Run | Yrd Mat Mat Turns Passed 418 | 40 177 201 Spaces Moved 359 | 32 147 180 Core 65 | 6 . 59 Treads . | . . . Legs 294 | 26 147 121 Wheels . | . . . Hover . | . . . Flight . | . . . Fastest Speed 50 | 50 120 50 Average Speed 110 | 106 120 103 Slowest Speed 150 | 120 120 150 Overloaded Moves . | . . . Propulsion Burnouts . | . . . Robots Hopped . | . . . Potential Cave-ins . | . . . Cave-ins Triggered . | . . . Exploration Rate (%) 21 | 2 32 31 Regions Visited 2 Branch Regions . Pre-discovered Areas . | . . . Known Exits Taken . | . . . Unknown Exits Taken 2 | 1 1 . Scrap Searched . | . . . Spaces Dug . | . . . Terrain Destroyed . | . . . Melee . | . . . Projectile . | . . . AOE . | . . . Terrain Rammed . | . . . Walls Destroyed . | . . . Machines Disabled . | . . . Actions | -11 -10 -9 --------- Run | Yrd Mat Mat Total 376 | 36 147 193 Wait . | . . . Move 357 | 31 146 180 Hop . | . . . Pick Up 2 | 1 1 . Fast Attach 8 | 4 . 4 Attach . | . . . Detach 2 | . . 2 Swap . | . . . Drop . | . . . Fire . | . . . Melee . | . . . Ram . | . . . Kick 7 | . . 7 Crush . | . . . Escape Stasis . | . . . Rewire . | . . . Trap . | . . . Miscellaneous . | . . . Route ------- -11/Scrapyard -10/Materials -9/Materials History --------- Turn | Location | Event 11 | -11/Scrapyard | Discovered new exit (range 15) 41 | -11/Scrapyard | Entered Materials 134 | -10/Materials | Discovered new exit (range 15) 218 | -10/Materials | Entered another Materials area 218 | -9/Materials | Evolved 2 slots: Propulsion x1, Utility x1 309 | -9/Materials | Build established: Mutant 384 | -9/Materials | Core integrity fell below 50% 408 | -9/Materials | Lost 4 parts (1p2n1u) 411 | -9/Materials | Core integrity fell below 20% 419 | -9/Materials | Destroyed by S-10 Pest with Light Assault Rifle Last Messages --------------- SECURING TERMINAL." 00397_ W-16 Scout sends out distress signal. 00399_ Acquired Med. Armor Plating. 00400_ O-16 Technician uses terminal to summon reinforcements. 00400_ ALERT: Hostiles spotted, dispatching reinforcements to Terminal M001. 00400_ O-16 Technician locks terminal. 00402_ U-05 Engineer works on Processing Tank. 00408_ S-10 Pest destroyed. 00408_ U-05 Engineer works on Processing Tank. 00409_ K-01 Serf collects debris. 00411_ K-01 Serf destroyed. 00412_ K-01 Serf collects debris. 00413_ M-13 Machinist repairs S-10 Pest. 00413_ U-05 Engineer works on Processing Tank. 00415_ R-06 Scavenger collects Flight Unit. 00417_ Med. Armor Plating destroyed. 00417_ K-01 Serf collects debris. Map ----- +----------------------------------------------------+ | ?????????????????????????????????????????????????? | | ?????????????????????????????????????????????????? | | ?????????????????????????????????????????????????? | | ?????????????????????????????????????????????????? | | ?????????????????????????????????????????????????? | | ?????????????????????????????????????????????????? | | ?????????????????????????????????????????????????? | | ?????????????????????????????????????????????????? | | ?????????????????????????????????????????????????? | | ?????????????????????????????????????????????????? | | ??????????????????????? ???????????????????????? | | ??????????????????????? ???????????????????????? | | ??????????????????????? ???????????????????????? | | ??????????????????????? ???????????????????????? | | ??????????????????????? ???????????????????????? | | ??????????????????????? ???????????????????????? | | ??????????????????????"" #??????????????????????? | | ??????????????????????"" ###????????????????????? | | ??????????????????????"" ????????????????????? | | ??????????????????????? ?????????????????????? | | ??????????????????????? ?????????????????????? | | ???????????????????????# g#?????????????????????? | | ???????????????????????# * #?????????????????????? | | ???????????????????????# % #?????????????????????? | | ???????????????????????# k #?????????????????????? | | ???????????????????????# @ #?????????????????????? | | ???????????????????????# #?????????????????????? | | ???????????????????????# #?????????????????????? | | ???????????????????????# a#?????????????????????? | | ???????????????????????# #?????????????????????? | | ???????????????????????# #?????#?? ????????????? | | ???????????????????????# #???? # ??????????? | | ???????????????????????# ##### # ?????????? | | ????????????????######?# ?????????? | | ????????????????# #s ?????????? | | ????????????????#"S #s [[[ "??????????? | | ????????????????#""" /ssmr [[[ T??????????? | | ????????????????# "" # s [[[ "" ????????? | | ????????????????# # ????????? | | ????????????????# ?# % ????????? | | ????????????????######?#!![ ???????? | | ???????????????????????# ![ ???????? | | ?????????????#+#########!! "" #??????? | | ??????????? " #??????? | | ??????????? " #??????? | | ??????????? #??????? | | ???????????############# #??????? | | ???????????????????????# ########### #???????? | | ???????????????????????# # ?????????????? | | ???????????????????????# # """""???????????????? | +----------------------------------------------------+ Best States ------------- Heat Dissipation 28 Energy Generation 10 Energy Capacity 125 Matter Stores 177 Matter Capacity 300 Sight Range 16 Terrain Scan Density 10 Armor Coverage 225 Evasion (%) 55 Item Schematics ----------------- None Robot Schematics ------------------ None Fabricated ------------ Nothing Repaired ---------- Nothing Studied --------- None Alien Tech Used ----------------- None Achievements -------------- None Challenges ------------ None Game ------ Seed SurveybotFlyingMatter Manual? 0 Play Time 00:06:31 Cumulative 239.9 hours Start 2026.07.21 @ 00:08:37 End 2026.07.21 @ 00:14:44 Sessions 1 Manual Loads 0 Difficulty Rogue Special Mode None Game No. 89 Rogue 89 Adventurer 0 Explorer 0 Win Type - Total 11 Types 3/1/2/2/1/0/0/1/0/1 Lore% 61 Gallery% 63 Achievement% 61 Wizard Run 0 Options --------- Layout 2 ASCII 0 Keyboard 1 Movement Numpad Keybinds 0 Fullscreen 2 Font 24/Smallcaps Map View 50x44 Zoom Use 0% Tactical HUD 1 Map Filters NONE Filters NONE Steam 1 RUN: 4c4386ea-22a8-45cf-8512-3a8c9b5da147